fUSD/lending_fUSD_20260123
["ID","MTS","AMOUNT","RATE_DAILY","PERIOD"]
[403083432,1769139040993,-500.0,0.00017754,2]
[403083433,1769139041002,-500.0,0.00017754,2]
[403083434,1769139041012,-150.0,0.00017754,2]
[403083435,1769139041022,-500.0,0.00017754,2]
[403083436,1769139041031,-1000.0,0.000178,2]
[403083437,1769139041040,-1000.0,0.000178,2]
[403083438,1769139041049,-1000.0,0.000178,2]
[403083439,1769139041059,-1000.0,0.000178,2]
[403083440,1769139041069,-1000.0,0.000178,2]
[403083441,1769139041078,-13400.0,0.000178,6]
[403083442,1769139041087,-1139.862,0.00017806,2]
[403083443,1769139041096,-500.0,0.00017808,2]
[403083444,1769139041105,-1000.0,0.00017808,2]
[403083445,1769139041115,-354.0,0.00017809,2]
[403083446,1769139041124,-189.89164013,0.00017809,2]
[403083447,1769139041134,-200.0,0.00017809,2]
[403083448,1769139041143,-503.6669669,0.00017809,2]
[403083449,1769139041152,-547.0,0.00017809,2]
[403083450,1769139041161,-160.66639761,0.00017809,2]
[403083451,1769139041170,-150.0,0.00017809,2]
[403083452,1769139041179,-500.0,0.00017809,2]
[403083453,1769139041188,-500.0,0.00017809,2]
[403083454,1769139041197,-200.0,0.00017809,2]
[403083455,1769139041206,-500.0,0.00017809,2]
[403083456,1769139041216,-444.44444,0.0001782,2]
[403083457,1769139041226,-444.44445,0.0001782,2]
[403083458,1769139041235,-1000.0,0.00017861,2]
[403083459,1769139041244,-1000.0,0.00017861,2]
[403083460,1769139041253,-500.0,0.00017863,2]
[403083461,1769139041262,-547.0,0.00017863,2]
[403083462,1769139041271,-150.0,0.00017863,2]
[403083463,1769139041281,-500.0,0.00017863,2]
[403083464,1769139041290,-500.0,0.00017863,2]
[403083465,1769139041299,-500.0,0.00017863,2]
[403083466,1769139041315,-553.41479761,0.00017865,2]
[403083467,1769139041325,-1460.47040677,0.00017865,2]
[403083468,1769139041334,-2576.44291263,0.00017865,2]
[403083469,1769139041343,-3854.20451036,0.00017865,2]
[403083470,1769139041352,-10000.0,0.000179,2]
[403083471,1769139041362,-1000.0,0.000179,2]
[403083472,1769139041372,-1000.0,0.000179,2]
[403083473,1769139041385,-4620.29495177,0.000179,2]
[403083474,1769139041395,-1011.0,0.000179,2]
[403083475,1769139041404,-1676.0,0.000179,2]
[403083476,1769139041415,-13400.0,0.000179,6]
[403083477,1769139041425,-955.08100753,0.000179,2]
[403083478,1769139041434,-3438.0,0.000179,2]
[403083479,1769139041443,-308.03994582,0.00017918,2]
[403083480,1769139041452,-547.0,0.00017918,2]
[403083481,1769139041463,-218.75385845,0.00017918,2]
[403083482,1769139041472,-314.98616488,0.00017918,2]
[403083483,1769139041481,-339.97005786,0.00017918,2]
[403083484,1769139041490,-500.0,0.00017918,2]
[403083485,1769139041499,-547.0,0.00017973,2]
[403083486,1769139041508,-500.0,0.00017973,2]
[403083487,1769139041518,-150.0,0.00017973,2]
[403083488,1769139041528,-150.0,0.00017973,2]
[403083489,1769139041537,-151.0,0.00017997,2]
[403083490,1769139041546,-500.0,0.00017999,2]
[403083491,1769139041555,-500.0,0.00017999,2]
[403083492,1769139041564,-500.0,0.00017999,2]
[403083493,1769139041573,-380.69489282,0.00017999,2]
[403083494,1769139041583,-500.0,0.00017999,2]
[403083495,1769139041593,-500.0,0.00017999,2]
[403083496,1769139041603,-500.0,0.00017999,2]
[403083497,1769139041612,-500.0,0.00017999,2]
[403083498,1769139041621,-500.0,0.00017999,2]
[403083499,1769139041631,-500.0,0.00017999,2]
[403083500,1769139041640,-500.0,0.00017999,2]
[403083501,1769139041652,-500.0,0.00017999,2]
[403083502,1769139041672,-500.0,0.00017999,2]
[403083503,1769139041683,-500.0,0.00017999,2]
[403083504,1769139041693,-500.0,0.00017999,2]
[403083505,1769139041702,-500.0,0.00017999,2]
[403083506,1769139041713,-341.67615774,0.00017999,2]
[403083507,1769139041722,-300.0,0.00017999,2]
[403083508,1769139041732,-290.72145165,0.00017999,2]
[403083509,1769139041741,-4411.50644398,0.00018,2]
[403083510,1769139041751,-69491.67775423,0.00018,2]
[403083511,1769139041766,-493.17330366,0.00018,2]
[403083512,1769139042092,-3089923.83878025,0.00018,2]
[403083513,1769139042103,-1402.54871401,0.00018,2]
[403083514,1769139042113,-151.0,0.00018,2]
[403083515,1769139042130,-1265.0,0.00018,2]
[403083516,1769139042141,-151.0,0.00018,2]
[403083517,1769139042150,-158.0,0.00018,2]
[403083518,1769139042160,-166.0,0.00018,2]
[403083519,1769139042169,-166.0,0.00018,2]
[403083520,1769139042178,-170.30242232,0.00018,2]
[403083521,1769139042187,-151.0,0.00018,2]
[403083522,1769139042197,-1265.0,0.00018,2]
[403083523,1769139042206,-151.0,0.00018,2]
[403083524,1769139042216,-1265.0,0.00018,2]
[403083525,1769139042225,-151.0,0.00018,2]
[403083526,1769139042234,-151.0,0.00018,2]
[403083527,1769139042244,-1265.0,0.00018,2]
[403083528,1769139042253,-151.0,0.00018,2]
[403083529,1769139042263,-151.0,0.00018,2]
[403083530,1769139042272,-151.0,0.00018,2]
[403083531,1769139042283,-1265.0,0.00018,2]
[403083532,1769139042293,-151.0,0.00018,2]
[403083533,1769139042305,-151.0,0.00018,2]
[403083534,1769139042319,-151.0,0.00018,2]
[403083535,1769139042328,-1265.0,0.00018,2]
[403083536,1769139042338,-151.0,0.00018,2]
[403083537,1769139042347,-151.0,0.00018,2]
[403083538,1769139042358,-1265.0,0.00018,2]
[403083539,1769139042367,-151.0,0.00018,2]
[403083540,1769139042377,-151.0,0.00018,2]
[403083541,1769139042386,-151.0,0.00018,2]
[403083542,1769139042395,-1265.0,0.00018,2]
[403083543,1769139042405,-151.0,0.00018,2]
[403083544,1769139042414,-153.23474665,0.00018,2]
[403083545,1769139042424,-151.0,0.00018,2]
[403083546,1769139042437,-151.0,0.00018,2]
[403083547,1769139042454,-151.0,0.00018,2]
[403083548,1769139042463,-1265.0,0.00018,2]
[403083549,1769139042473,-151.0,0.00018,2]
[403083550,1769139042483,-1265.0,0.00018,2]
[403083551,1769139042492,-151.0,0.00018,2]
[403083552,1769139042501,-1265.0,0.00018,2]
[403083553,1769139042510,-1265.0,0.00018,2]
[403083554,1769139042519,-1265.0,0.00018,2]
[403083555,1769139042530,-1265.0,0.00018,2]
[403083556,1769139042539,-1265.0,0.00018,2]
[403083557,1769139042548,-151.0,0.00018,2]
[403083558,1769139042557,-151.0,0.00018,2]
[403083559,1769139042567,-1265.0,0.00018,2]
[403083560,1769139042577,-151.0,0.00018,2]
[403083561,1769139042586,-151.0,0.00018,2]
[403083562,1769139042596,-1380.07570106,0.00018,2]
[403083563,1769139042605,-151.0,0.00018,2]
[403083564,1769139042615,-151.0,0.00018,2]
[403083565,1769139042625,-151.0,0.00018,2]
[403083566,1769139042635,-151.0,0.00018,2]
[403083567,1769139042645,-151.0,0.00018,2]
[403083568,1769139042654,-151.0,0.00018,2]
[403083569,1769139042663,-151.0,0.00018,2]
[403083570,1769139042672,-151.0,0.00018,2]
[403083571,1769139042682,-151.0,0.00018,2]
[403083572,1769139042691,-151.0,0.00018,2]
[403083573,1769139042701,-151.0,0.00018,2]
[403083574,1769139042710,-151.0,0.00018,2]
[403083575,1769139042720,-151.0,0.00018,2]
[403083576,1769139042729,-151.0,0.00018,2]
[403083577,1769139042738,-151.0,0.00018,2]
[403083578,1769139042747,-151.0,0.00018,2]
[403083579,1769139042756,-151.0,0.00018,2]
[403083580,1769139042765,-151.0,0.00018,2]
[403083581,1769139042775,-231.17087589,0.00018,2]
[403083582,1769139042784,-151.0,0.00018,2]
[403083583,1769139042793,-197.51123237,0.00018,2]
[403083584,1769139042802,-151.0,0.00018,2]
[403083585,1769139042811,-151.0,0.00018,2]
[403083586,1769139042820,-1265.0,0.00018,2]
[403083587,1769139042829,-151.0,0.00018,2]
[403083588,1769139042838,-1265.0,0.00018,2]
[403083589,1769139042848,-151.0,0.00018,2]
[403083590,1769139042858,-151.0,0.00018,2]
[403083591,1769139042869,-1265.0,0.00018,2]
[403083592,1769139042878,-151.0,0.00018,2]
[403083593,1769139042886,-151.0,0.00018,2]
[403083594,1769139042895,-1265.0,0.00018,2]
[403083595,1769139042904,-151.0,0.00018,2]
[403083596,1769139042913,-1265.0,0.00018,2]
[403083597,1769139042922,-151.0,0.00018,2]
[403083598,1769139042932,-1265.0,0.00018,2]
[403083599,1769139042941,-1265.0,0.00018,2]
[403083600,1769139042950,-1265.0,0.00018,2]
[403083601,1769139042959,-1265.0,0.00018,2]
[403083602,1769139042968,-265.9209487,0.00018,2]
[403083603,1769139042977,-10799.2915628,0.00018,2]
[403083604,1769139042986,-4842823.96695514,0.00018,2]
[403083605,1769139042999,-369.68290828,0.00018,2]
[403083612,1769139046324,-1633.4123309,0.00018,2]
[403083613,1769139046335,-1677.7912826,0.00018,2]
[403083614,1769139046437,-8643.47151459,0.00018,2]
[403083615,1769139046493,-1845.05847301,0.00018,2]
[403083616,1769139046505,-944.86849305,0.00018,2]
[403083629,1769139642591,201.80063877,0.000155,3]
[403083640,1769139857063,166.66,0.00015001,2]
[403083703,1769140125449,-853.33462065,0.00015239,2]
[403083731,1769140204623,277.0,0.00015239,2]
[403083734,1769140211079,-98.90071235,0.00015239,2]
[403083735,1769140211106,-171.07025521,0.00015278,2]
[403083736,1769140214248,-23.92974479,0.00015278,2]
[403083737,1769140214270,-158.9723143,0.00015317,2]
[403083751,1769140231378,-7.6876857,0.00015317,2]
[403083753,1769140231388,-250.0,0.00015474,2]
[403083755,1769140231398,-166.66,0.00015632,2]
[403083756,1769140231407,-465.35108245,0.00015674,2]
[403083757,1769140231417,-171.0802739,0.00015688,2]
[403083758,1769140231428,-895.99756703,0.00015688,2]
[403083759,1769140231443,-1573.12997765,0.00015688,2]
[403083760,1769140231455,-344.17171453,0.00015688,2]
[403083761,1769140231467,-614.3744897,0.00015688,2]
[403083762,1769140231486,-661.42405583,0.00015688,2]
[403083763,1769140231540,-806.66192136,0.00015688,2]
[403083764,1769140231549,-194.72945059,0.0001569,2]
[403083765,1769140231561,-10.8742297,0.0001569,2]
[403083766,1769140231571,-1187.04,0.0001579,2]
[403083767,1769140231580,-200.0,0.0001579,2]
[403083768,1769140231590,-1200.0,0.00015897,2]
[403083776,1769140231599,-161.0,0.000159,2]
[403083779,1769140231750,-6543.43723896,0.000159,5]
[403083780,1769140231762,-6856.56276104,0.000159,5]
[403083781,1769140231772,-166.66,0.00015948,2]
[403083782,1769140231782,-157.29,0.00016024,2]
[403083783,1769140231791,-154.79,0.00016073,2]
[403083784,1769140231800,-205.60368029,0.00016164,2]
[403083785,1769140231810,-9748.15709814,0.00016199,2]
[403083786,1769140231821,-172586.0997286,0.00016199,2]
[403083787,1769140231833,-80061.27953283,0.00016199,2]
[403083788,1769140231857,-2618.32680155,0.00016199,2]
[403083789,1769140231868,-1004.51234508,0.00016199,2]
[403083790,1769140231879,-556.64674786,0.00016199,2]
[403083791,1769140231890,-911.69251022,0.00016199,2]
[403083792,1769140231900,-2272.00685647,0.00016199,2]
[403083793,1769140231914,-346.84803172,0.00016199,2]
[403083799,1769140237447,-510.0107198,0.00016199,2]
[403083802,1769140237460,-896.94,0.00016199,2]
[403083804,1769140237471,-1238.95791096,0.00016199,2]
[403083808,1769140237543,-1174.78382823,0.00016199,2]
[403083809,1769140237554,-3642.43950382,0.00016199,2]
[403083810,1769140237565,-8955.09288504,0.00016199,2]
[403083811,1769140237576,-2618.70075047,0.00016199,2]
[403083812,1769140237587,-12789.37076417,0.00016199,2]
[403083813,1769140237599,-16692.34740202,0.00016199,2]
[403083814,1769140237611,-178332.95418302,0.00016199,2]
[403083815,1769140237621,-166.66,0.00016264,2]
[403083816,1769140237630,-550.0,0.00016299,2]
[403083817,1769140237641,-9962.5558,0.000163,2]
[403083818,1769140237650,-923.744,0.000163,2]
[403083819,1769140237661,-2500.0,0.000163,2]
[403083820,1769140237672,-577.536869,0.0001632,2]
[403083821,1769140237682,-152.13538667,0.0001632,2]
[403083822,1769140237693,-2031.84381754,0.0001632,2]
[403083823,1769140237703,-1155.07373796,0.00016338,2]
[403083824,1769140237716,-577.53686898,0.00016338,2]
[403083825,1769140237726,-577.53686898,0.00016338,2]
[403083826,1769140237739,-1732.61060694,0.00016338,2]
[403083827,1769140237748,-202.88619949,0.00016399,2]
[403083828,1769140237758,-500.0,0.00016399,2]
[403083829,1769140237767,-500.0,0.00016399,2]
[403083830,1769140237777,-500.0,0.00016399,2]
[403083831,1769140237787,-1098.65614174,0.00016399,5]
[403083832,1769140237797,-500.0,0.00016438,2]
[403083833,1769140237806,-500.0,0.00016438,2]
[403083834,1769140237815,-500.0,0.00016438,2]
[403083835,1769140237825,-500.0,0.00016438,2]
[403083836,1769140237835,-392.13421654,0.00016438,2]
[403083837,1769140237844,-500.0,0.00016438,2]
[403083838,1769140237854,-500.0,0.00016438,2]
[403083839,1769140237863,-500.0,0.00016438,2]
[403083840,1769140237872,-2031.84381754,0.00016496,2]
[403083841,1769140237881,-1000.0,0.00016516,2]
[403083842,1769140237890,-887.55601902,0.00016525,2]
[403083843,1769140237899,-2342.2743767,0.00016525,2]
[403083844,1769140237909,-4132.04963914,0.00016525,2]
[403083845,1769140237921,-6181.2991385,0.00016525,2]
[403083846,1769140237930,-8363.5101,0.00016525,2]
[403083847,1769140237939,-577.53686897,0.00016546,2]
[403083848,1769140237949,-1155.07373794,0.00016561,2]
[403083849,1769140237958,-577.53686897,0.00016561,2]
[403083851,1769140237967,-577.53686897,0.00016561,2]
[403083852,1769140237976,-1732.61060691,0.00016561,2]
[403083854,1769140237985,-166.66,0.0001658,2]
[403083856,1769140237994,-500.0,0.00016615,2]
[403083858,1769140238003,-2031.84381754,0.00016671,2]
[403083860,1769140238012,-195.0,0.00016763,2]
[403083862,1769140238022,-577.53686897,0.00016771,2]
[403083864,1769140238031,-1155.07373794,0.00016784,2]
[403083866,1769140238041,-577.53686897,0.00016784,2]
[403083868,1769140238050,-577.53686897,0.00016784,2]
[403083870,1769140238060,-1732.61060691,0.00016784,2]
[403083872,1769140238070,-500.0,0.00016802,2]
[403083874,1769140238080,-213.35,0.00016833,2]
[403083876,1769140238090,-854.2589148,0.00016833,2]
[403083878,1769140238100,-523.75609166,0.00016833,2]
[403083880,1769140238111,-500.0,0.00016833,2]
[403083882,1769140238120,-500.0,0.00016833,2]
[403083884,1769140238130,-500.0,0.00016833,2]
[403083886,1769140238139,-500.0,0.00016833,2]
[403083888,1769140238149,-250.0,0.00016833,2]
[403083890,1769140238158,-500.0,0.00016833,2]
[403083892,1769140238167,-250.0,0.00016833,2]
[403083894,1769140238176,-623.96629697,0.00016833,2]
[403083896,1769140238186,-250.0,0.00016833,2]
[403083898,1769140238195,-250.0,0.00016833,2]
[403083900,1769140238205,-250.0,0.00016833,2]
[403083902,1769140238214,-250.0,0.00016833,2]
[403083904,1769140238223,-250.0,0.00016833,2]
[403083906,1769140238232,-250.0,0.00016833,2]
[403083908,1769140238241,-250.0,0.00016833,2]
[403083910,1769140238251,-250.0,0.00016833,2]
[403083912,1769140238260,-250.0,0.00016833,2]
[403083914,1769140238270,-151.0,0.00016833,2]
[403083916,1769140238278,-151.0,0.00016833,2]
[403083918,1769140238288,-500.0,0.00016833,2]
[403083920,1769140238298,-151.0,0.00016833,2]
[403083922,1769140238307,-500.0,0.00016833,2]
[403083924,1769140238316,-500.0,0.00016833,2]
[403083926,1769140238325,-151.0,0.00016833,2]
[403083928,1769140238335,-151.0,0.00016833,2]
[403083930,1769140238343,-500.0,0.00016833,2]
[403083932,1769140238353,-151.0,0.00016833,2]
[403083934,1769140238362,-500.0,0.00016833,2]
[403083936,1769140238371,-500.0,0.00016833,2]
[403083938,1769140238381,-151.0,0.00016833,2]
[403083940,1769140238390,-500.0,0.00016833,2]
[403083941,1769140238398,-151.0,0.00016833,2]
[403083944,1769140238409,-500.0,0.00016833,2]
[403083946,1769140238418,-151.0,0.00016833,2]
[403083948,1769140238426,-500.0,0.00016833,2]
[403083950,1769140238436,-151.0,0.00016833,2]
[403083952,1769140238445,-151.0,0.00016833,2]
[403083954,1769140238454,-587.19568972,0.00016833,2]
[403083956,1769140238462,-2031.84381754,0.00016847,2]
[403083958,1769140238472,-611.72959528,0.00016848,2]
[403083960,1769140238481,-445.10708926,0.00016848,2]
[403083962,1769140238491,-250.0,0.00016848,2]
[403083964,1769140238499,-2500.0,0.00016848,2]
[403083966,1769140238508,-161.0,0.000169,2]
[403083968,1769140238518,-999.99,0.00016922,2]
[403083970,1769140238527,-9999.99,0.00016922,2]
[403083972,1769140238536,-3843.03,0.00016922,2]
[403083974,1769140238545,-444.27,0.00016922,2]
[403083976,1769140238554,-3823.15,0.00016922,2]
[403083978,1769140238563,-5896.79,0.00016922,2]
[403083980,1769140238573,-150.99,0.00016922,2]
[403083982,1769140238582,-150.99,0.00016922,2]
[403083984,1769140238591,-5601.05,0.00016922,2]
[403083986,1769140238600,-9999.99,0.00016922,2]
[403083988,1769140238610,-18035.16,0.00016922,2]
[403083990,1769140238619,-4767.54,0.00016922,2]
[403083992,1769140238628,-209.43329755,0.00016983,2]
[403083994,1769140238637,-577.53686897,0.00016997,2]
[403083996,1769140238646,-1155.07373794,0.00017007,2]
[403083998,1769140238655,-577.53686897,0.00017007,2]
[403084001,1769140238676,-577.53686897,0.00017007,2]
[403084003,1769140238687,-1732.61060691,0.00017007,2]
[403084005,1769140238696,-2031.84381754,0.00017022,2]
[403084007,1769140238707,-2241.0,0.00017091,2]
[403084009,1769140238716,-213.35,0.00017107,2]
[403084011,1769140238724,-2241.0,0.00017165,2]
[403084013,1769140238734,-157.29,0.00017169,2]
[403084015,1769140238745,-2031.84381754,0.00017198,2]
[403084017,1769140238755,-577.53686897,0.00017223,2]
[403084019,1769140238764,-1155.07373794,0.00017231,2]
[403084021,1769140238773,-577.53686897,0.00017231,2]
[403084023,1769140238782,-577.53686897,0.00017231,2]
[403084025,1769140238791,-1732.61060691,0.00017231,2]
[403084027,1769140238800,-1000.0,0.0001726,2]
[403084029,1769140238809,-2241.0,0.00017283,2]
[403084031,1769140238819,-565.25,0.000173,2]
[403084033,1769140238828,-26800.0,0.000173,6]
[403084035,1769140238837,-2031.84381754,0.00017373,2]
[403084037,1769140238846,-213.35,0.00017381,2]
[403084039,1769140238855,-40200.0,0.000174,6]
[403084041,1769140238865,-1159.18,0.000174,2]
[403084043,1769140238874,-1159.18,0.000174,2]
[403084045,1769140238884,-1826.64,0.000174,2]
[403084047,1769140238893,-935.0,0.00017424,2]
[403084049,1769140238903,-477.54600617,0.00017434,2]
[403084051,1769140238912,-577.53686897,0.00017449,2]
[403084053,1769140238921,-201.0,0.00017452,2]
[403084055,1769140238930,-1155.07373794,0.00017454,2]
[403084057,1769140238939,-577.53686897,0.00017454,2]
[403084059,1769140238948,-577.53686897,0.00017454,2]
[403084061,1769140238957,-1732.61060691,0.00017454,2]
[403084063,1769140238967,-1680.0,0.0001747,2]
[403084065,1769140238976,-500.0,0.00017499,2]
[403084067,1769140238986,-53600.0,0.000175,6]
[403084069,1769140238995,-4976.0,0.00017508,2]
[403084071,1769140239005,-1000.0,0.00017534,2]
[403084073,1769140239014,-202.50519826,0.00017537,2]
[403084075,1769140239023,-2031.84381754,0.00017549,2]
[403084077,1769140239033,-500.0,0.00017599,2]
[403084079,1769140239042,-157.66821442,0.00017599,2]
[403084081,1769140239051,-299.6440931,0.00017599,2]
[403084083,1769140239061,-500.0,0.00017599,2]
[403084085,1769140239070,-578.28467801,0.00017599,2]
[403084087,1769140239080,-67000.0,0.000176,6]
[403084089,1769140239090,-200.0,0.00017632,2]
[403084091,1769140239100,-2241.0,0.00017636,2]
[403084093,1769140239110,-4781.37656925,0.0001764,2]
[403084095,1769140239120,-213.35,0.00017655,2]
[403084097,1769140239130,-477.54600617,0.00017667,2]
[403084099,1769140239140,-507.68701346,0.00017673,2]
[403084101,1769140239150,-500.0,0.00017673,2]
[403084103,1769140239160,-511.49760942,0.00017673,2]
[403084106,1769140239170,-500.0,0.00017673,2]
[403084108,1769140239180,-577.53686897,0.00017674,2]
[403084110,1769140239190,-1155.07373794,0.00017677,2]
[403084112,1769140239200,-577.53686897,0.00017677,2]
[403084114,1769140239214,-577.53686897,0.00017677,2]
[403084116,1769140239224,-1732.61060691,0.00017677,2]
[403084119,1769140239234,-500.0,0.00017699,2]
[403084121,1769140239244,-500.0,0.00017699,2]
[403084123,1769140239254,-500.0,0.00017699,2]
[403084125,1769140239263,-150.0,0.00017699,2]
[403084127,1769140239273,-150.0,0.00017699,2]
[403084129,1769140239284,-150.0,0.00017699,2]
[403084131,1769140239293,-500.0,0.00017699,2]
[403084133,1769140239303,-204.47202902,0.00017699,2]
[403084135,1769140239313,-547.0,0.00017699,2]
[403084138,1769140239323,-500.0,0.00017699,2]
[403084140,1769140239334,-500.0,0.00017699,2]
[403084142,1769140239343,-150.0,0.00017699,2]
[403084144,1769140239355,-150.0,0.00017699,2]
[403084146,1769140239364,-150.0,0.00017699,2]
[403084148,1769140239374,-150.0,0.00017699,2]
[403084150,1769140239384,-500.0,0.00017699,2]
[403084152,1769140239394,-150.0,0.00017699,2]
[403084155,1769140239404,-13400.0,0.000177,6]
[403084157,1769140239415,-1676.0,0.000177,2]
[403084159,1769140239425,-2031.84381754,0.00017724,2]
[403084161,1769140239435,-4976.0,0.00017725,2]
[403084163,1769140239445,-500.0,0.00017754,2]
[403084165,1769140239455,-642.33986888,0.00017754,2]
[403084167,1769140239465,-500.0,0.00017754,2]
[403084169,1769140239475,-150.0,0.00017754,2]
[403084171,1769140239484,-150.0,0.00017754,2]
[403084173,1769140239494,-150.0,0.00017754,2]
[403084176,1769140239505,-500.0,0.00017754,2]
[403084178,1769140239515,-547.0,0.00017754,2]
[403084180,1769140239525,-500.0,0.00017754,2]
[403084182,1769140239535,-500.0,0.00017754,2]
[403084184,1769140239545,-150.0,0.00017754,2]
[403084186,1769140239556,-150.0,0.00017754,2]
[403084188,1769140239566,-150.0,0.00017754,2]
[403084190,1769140239576,-500.0,0.00017754,2]
[403084193,1769140239589,-1000.0,0.0001778,2]
[403084195,1769140239600,-500.0,0.00017799,2]
[403084197,1769140239610,-1139.862,0.000178,2]
[403084199,1769140239620,-13400.0,0.000178,6]
[403084201,1769140239630,-500.0,0.00017808,2]
[403084204,1769140239641,-1000.0,0.00017808,2]
[403084206,1769140239651,-500.0,0.00017809,2]
[403084207,1769140239662,-354.0,0.00017809,2]
[403084208,1769140239673,-189.89164013,0.00017809,2]
[403084209,1769140239683,-200.0,0.00017809,2]
[403084210,1769140239694,-463.79054865,0.00017809,2]
[403084211,1769140239704,-547.0,0.00017809,2]
[403084212,1769140239714,-503.6669669,0.00017809,2]
[403084213,1769140239724,-500.0,0.00017809,2]
[403084214,1769140239735,-200.0,0.00017809,2]
[403084215,1769140239745,-160.66639761,0.00017809,2]
[403084216,1769140239755,-150.0,0.00017809,2]
[403084217,1769140239764,-500.0,0.00017809,2]
[403084218,1769140239774,-360.60454,0.0001782,2]
[403084219,1769140239784,-360.60454,0.0001782,2]
[403084220,1769140239794,-1000.0,0.0001786,2]
[403084221,1769140239804,-1000.0,0.0001786,2]
[403084222,1769140239815,-500.0,0.00017863,2]
[403084223,1769140239825,-500.0,0.00017863,2]
[403084224,1769140239835,-547.0,0.00017863,2]
[403084225,1769140239845,-500.0,0.00017863,2]
[403084226,1769140239855,-150.0,0.00017863,2]
[403084227,1769140239865,-500.0,0.00017863,2]
[403084228,1769140239875,-601.50590068,0.000179,2]
[403084230,1769140239885,-1155.07373794,0.000179,2]
[403084232,1769140239895,-577.53686897,0.000179,2]
[403084234,1769140239905,-577.53686897,0.000179,2]
[403084236,1769140239915,-1732.61060691,0.000179,2]
[403084238,1769140239925,-577.53686897,0.000179,2]
[403084240,1769140239935,-10000.0,0.000179,2]
[403084242,1769140239945,-1000.0,0.000179,2]
[403084244,1769140239955,-162.0,0.000179,3]
[403084247,1769140239969,-13400.0,0.000179,6]
[403084249,1769140239979,-2031.84381754,0.000179,2]
[403084251,1769140239989,-531.58560379,0.000179,2]
[403084253,1769140239999,-477.54600617,0.000179,2]
[403084255,1769140240009,-3444.0,0.000179,2]
[403084257,1769140240020,-308.03994582,0.00017918,2]
[403084260,1769140240030,-500.0,0.00017918,2]
[403084262,1769140240040,-547.0,0.00017918,2]
[403084264,1769140240050,-339.97005786,0.00017918,2]
[403084266,1769140240061,-218.75385845,0.00017918,2]
[403084268,1769140240071,-314.98616488,0.00017918,2]
[403084270,1769140240082,-4976.0,0.0001792,2]
[403084272,1769140240092,-213.35014394,0.00017929,2]
[403084274,1769140240103,-500.0,0.00017973,2]
[403084276,1769140240113,-547.0,0.00017973,2]
[403084278,1769140240123,-150.0,0.00017973,2]
[403084280,1769140240133,-150.0,0.00017973,2]
[403084283,1769140240144,-587.0,0.00017986,2]
[403084285,1769140240154,-151.0,0.00017997,2]
[403084287,1769140240165,-500.0,0.00017999,2]
[403084289,1769140240175,-500.0,0.00017999,2]
[403084291,1769140240185,-500.0,0.00017999,2]
[403084293,1769140240195,-500.0,0.00017999,2]
[403084295,1769140240205,-500.0,0.00017999,2]
[403084298,1769140240216,-500.0,0.00017999,2]
[403084301,1769140240226,-500.0,0.00017999,2]
[403084303,1769140240236,-500.0,0.00017999,2]
[403084305,1769140240247,-500.0,0.00017999,2]
[403084307,1769140240257,-500.0,0.00017999,2]
[403084309,1769140240267,-500.0,0.00017999,2]
[403084311,1769140240277,-341.67615774,0.00017999,2]